Cogmind - Beta 13 @@@ ROGUE MODE // 2024.05.07 @ 20:56:39 Player: luckinvolved Result: Destroyed by as-86719 with Assembled Blade Performance ------------- Evolutions (1) 500 Regions Visited (4) 800 Robots Destroyed (19) 95 Value Destroyed (572) 572 Prototype IDs (0) 0 Alien Tech Used (0) 0 Bonus (68) 68 TOTAL SCORE: 2035 Bonus ------- High Alert Combat Kills 8 Follower Combat Kills 60 Cogmind --------- Core Integrity 0/400 Matter 250/300 Energy 100/100 System Corruption 0% Temperature Cool (0) Movement Core (50) Location -9/Mines Parts ------- > --- POWER (1) -------- (None) > --- PROPULSION (3) --- (None) > --- UTILITY (3) ------ (None) > --- WEAPON (2) ------- (None) > --- INVENTORY (5) ---- Improved Heat Sink EM Pulse Gun Peak State ------------ > --- POWER ------------ Ion Engine > --- PROPULSION ------- Light Treads Light Treads Light Treads > --- UTILITY ---------- Heat Sink Heat Sink Small Storage Unit > --- WEAPON ----------- Medium Laser Small Laser > --- INVENTORY -------- Ion Engine Wheel Compact Wheel Improved Heat Sink EM Pulse Gun Grenade Launcher Mini Grenade Launcher [Rating: 10] Favorites ----------- Power Ion Engine Engine Ion Engine Propulsion Light Treads Treads Light Treads Wheel Compact Wheel Utility Small Storage Unit Device Heat Sink Storage Small Storage Unit Weapon Small Laser Energy Gun Small Laser Launcher Mini Grenade Launcher Build | -11 -10 -10 -9 -9 ------- Run | Yrd Mat Min Mat Min Slots Evolved 2 | . . . 2 . Power . | . . . . . Propulsion 1 | . . . 1 . Utility 1 | . . . 1 . Weapon . | . . . . . Parts Attached 20 | 6 3 2 4 5 Power 2 | 1 . . . 1 Engine 2 | 1 . . . 1 Core . | . . . . . Reactor . | . . . . . Propulsion 9 | 2 2 2 1 2 Treads 5 | 2 . 2 1 . Leg . | . . . . . Wheel 4 | . 2 . . 2 Hover . | . . . . . Flight . | . . . . . Utility 3 | 1 1 . 1 . Device 2 | . 1 . 1 . Storage 1 | 1 . . . . Processor . | . . . . . Hackware . | . . . . . Protection . | . . . . . Artifact . | . . . . . Weapon 6 | 2 . . 2 2 Energy Gun 4 | 2 . . . 2 Energy Cannon . | . . . . . Ballistic Gun . | . . . . . Ballistic Cannon . | . . . . . Launcher 2 | . . . 2 . Special Weapon . | . . . . . Impact Weapon . | . . . . . Slashing Weapon . | . . . . . Piercing Weapon . | . . . . . Special Melee Weapon . | . . . . . Unidentified Prototypes . | . . . . . Parts Lost 13 | . . . 6 7 Power 2 | . . . 1 1 Propulsion 5 | . . . 2 3 Utility 2 | . . . 2 . Weapon 4 | . . . 1 3 Highest Loss Streak 9 | . . . 5 9 To Critical Strikes . | . . . . . Average Slot Usage (%) 82 | . 95 100 91 44 Engine 11 | . 14 14 10 10 Treads 18 | . 26 14 30 . Wheel 6 | . 1 14 . 12 Device 11 | . 9 14 17 . Storage 12 | . 14 14 11 10 Energy Gun 18 | . 28 28 13 9 Launcher 3 | . . . 8 1 Naked Turns 5 | . . . . 5 Heaviest Build 16 | 13 14 14 16 11 Greatest Support 60 | 40 40 40 60 26 Greatest Overweight (x) 1 | . 1 . . 1 Average Overweight (x) . | . . . . . Largest Inventory Capacity 8 | 8 8 8 8 8 Average Capacity 7 | 6 8 8 8 7 Most Carried 7 | 5 6 6 7 6 Average Carried 4 | 2 5 6 6 2 Final Capacity 8 | 8 8 8 8 5 Final Carried 7 | 4 6 6 7 2 Class Distribution -------------------- 100% | Mutant Dominant Class ---------------- Mutant | -10/Materials Mutant | -10/Mines Mutant | -9/Materials Mutant | -9/Mines Resources | -11 -10 -10 -9 -9 ----------- Run | Yrd Mat Min Mat Min Matter Collected 435 | 260 . 50 100 25 Remotely . | . . . . . Salvage Created 510 | . . 86 386 38 Parts 33 | . . 1 29 3 Haulers Intercepted . | . . . . . Recyclers Shooed . | . . . . . Parts Field Recycled . | . . . . . Retrieved Matter . | . . . . . Parts Self-Destructed . | . . . . . Prevented . | . . . . . Kills | -11 -10 -10 -9 -9 ------- Run | Yrd Mat Min Mat Min Combat Hostiles Destroyed 17 | . . 2 14 1 Guns 7 | . . 2 5 . AOE 10 | . . . 9 1 Classes Destroyed 4 | . . 1 3 . Builder 1 | . . . 1 . Watcher 1 | . . . 1 . Swarmer 4 | . . . 4 . Grunt 13 | . . 2 10 1 Best Kill Streak 7 | . . 1 7 1 Combat Bots Only 4 | . . 1 4 1 Max Kills in Single Turn 3 | . . 1 3 1 Gunslinging . | . . . . . Exploded 3 | . . . 3 1 Melee . | . . . . . Uniques/NPCs Destroyed . | . . . . . Combat | -11 -10 -10 -9 -9 -------- Run | Yrd Mat Min Mat Min Hostile Shots Fired 147 | . 8 18 85 36 Missed 44 | . 5 5 20 14 Damage Taken 1537 | . 37 165 921 414 Core 490 | . . 63 234 193 Absorbed by Shields . | . . . . . Core Remaining (%) 87 | 100 . 74 . . Volleys Fired 51 | . . 13 33 5 Largest 2 | . . 2 2 1 Hottest 90 | . . 90 90 40 Shots Fired 97 | . . 26 66 5 Gun 82 | . . 26 54 2 Cannon . | . . . . . Launcher 15 | . . . 12 3 Special . | . . . . . Kinetic . | . . . . . Thermal 82 | . . 26 54 2 Explosive 15 | . . . 12 3 Electromagnetic . | . . . . . Robot Hit Streak 7 | . . 6 7 1 Robot Miss Streak 5 | . . 5 2 2 Penetration Max . | . . . . . Secondary Targets 1 | . . . 1 . Max Gunslinging Chain 1 | . . . 1 . Shots Hit Robots 59 | . . 15 42 2 Core Hits 38 | . . 5 28 5 Critical Kills . | . . . . . Critical Parts Destroyed . | . . . . . Critical Strikes 1 | . . 1 . . Burn 1 | . . 1 . . Melee Attacks . | . . . . . Impact . | . . . . . Slashing . | . . . . . Piercing . | . . . . . Sneak Attacks . | . . . . . Combat Hostiles . | . . . . . Follow-up Attacks . | . . . . . Damage Inflicted 1461 | . . 186 1067 208 Guns 651 | . . 186 453 12 Cannons . | . . . . . Explosions 804 | . . . 608 196 Melee . | . . . . . Ramming 6 | . . . 6 . Kinetic . | . . . . . Thermal 732 | . . 186 534 12 Explosive 723 | . . . 527 196 Electromagnetic . | . . . . . Impact . | . . . . . Slashing . | . . . . . Piercing . | . . . . . Highest Corruption . | . . . . . Average Corruption . | . . . . . Corruption Purged . | . . . . . Corruption Blocked . | . . . . . Overload Shots . | . . . . . Overflow Damage 76 | . . . 76 . Projectiles . | . . . . . Explosions 76 | . . . 76 . Melee . | . . . . . Knockbacks . | . . . . . Impact . | . . . . . Kinetic . | . . . . . Secondary . | . . . . . Self-Inflicted Damage 38 | . . . 38 . Shots 1 | . . . 1 . Rammed 2 | . . . 2 . Targets Rammed 2 | . . . 2 . Kicked . | . . . . . Crushed . | . . . . . Highest Temperature 60 | . . 60 6 7 Average Temperature 26 | . . 32 3 4 Received Heat Transfer 627 | . 21 93 393 120 Siege Activations . | . . . . . Robots Corrupted . | . . . . . Combat Hostiles . | . . . . . Parts Fried . | . . . . . Impact Corruptions . | . . . . . Robots Melted . | . . . . . Combat Hostiles . | . . . . . Parts Melted 7 | . . 4 3 . Heat Transferred 1800 | . . 558 1217 25 Parts Sabotaged . | . . . . . Parts Stolen . | . . . . . Parts Stripped . | . . . . . Power Chain Reactions . | . . . . . Alert | -11 -10 -10 -9 -9 ------- Run | Yrd Mat Min Mat Min Peak Influence 437 | . 29 75 437 249 Initial 125 | . . 10 29 125 Average 119 | . 7 19 207 204 Maximum Alert Level 2 | . . . 2 1 Low Security (%) 73 | 100 100 100 59 41 Level 1 18 | . . . 16 58 Level 2 8 | . . . 24 . Level 3 . | . . . . . Level 4 . | . . . . . Level 5 . | . . . . . High Security . | . . . . . Max Security . | . . . . . Squads Dispatched 2 | . . . 2 . Investigation 1 | . . . 1 . Extermination . | . . . . . Reinforcement 1 | . . . 1 . Assault . | . . . . . Garrison . | . . . . . Intercept . | . . . . . Searches Triggered . | . . . . . Construction Impeded 1 | . . . 1 . Haulers Reinforced . | . . . . . Active Scanning Responses . | . . . . . Cargo Convoy Interrupts . | . . . . . Stealth | -11 -10 -10 -9 -9 --------- Run | Yrd Mat Min Mat Min Distress Signals 1 | . . . 1 . Communications Jammed . | . . . . . Distress Signals . | . . . . . Times Spotted 36 | . 3 2 23 8 Peak Tracking Total 9 | . 3 2 9 3 Tactical Retreats 3 | . . . 1 2 Traps | -11 -10 -10 -9 -9 ------- Run | Yrd Mat Min Mat Min Traps Triggered . | . . . . . Indirectly . | . . . . . Trap Hack Attempts . | . . . . . Triggered . | . . . . . Disarmed . | . . . . . Reprogrammed . | . . . . . Reused . | . . . . . Traps Extracted . | . . . . . Installed . | . . . . . Triggered . | . . . . . Machines | -11 -10 -10 -9 -9 ---------- Run | Yrd Mat Min Mat Min Machines Disabled 3 | . . . 3 . Max in Single Turn 2 | . . . 2 . Machines Repaired . | . . . . . Machines Dismantled . | . . . . . Machines Sabotaged . | . . . . . Overloaded Fab Kills . | . . . . . Hacking | -11 -10 -10 -9 -9 --------- Run | Yrd Mat Min Mat Min Machines Accessed 4 | . 2 . 2 . Terminals 4 | . 2 . 2 . Fabricators . | . . . . . Repair Stations . | . . . . . Recycling Units . | . . . . . Scanalyzers . | . . . . . Garrison Access . | . . . . . Total Hacks 9 | . 6 . 3 . Successful 4 | . 4 . . . Failed 5 | . 2 . 3 . Catastrophic 3 | . . . 3 . Database Lockouts . | . . . . . Manual 8 | . 5 . 3 . Terminals 9 | . 6 . 3 . Fabricators . | . . . . . Repair Stations . | . . . . . Recycling Units . | . . . . . Scanalyzers . | . . . . . Garrison Access . | . . . . . Terminal Hacks 2 | . 2 . . . Robot Analysis 1 | . 1 . . . Branch Access Points 1 | . 1 . . . Fabricator Hacks . | . . . . . Repair Station Hacks . | . . . . . Recycling Unit Hacks . | . . . . . Scanalyzer . | . . . . . Garrison Access Hacks . | . . . . . Unauthorized Hacks 2 | . 2 . . . Terminals 2 | . 2 . . . Botnet 2 | . 2 . . . Fabricators . | . . . . . Repair Stations . | . . . . . Recycling Units . | . . . . . Scanalyzers . | . . . . . Garrison Access . | . . . . . Data Cores Recovered . | . . . . . Used . | . . . . . Hacking Detections 3 | . 1 . 2 . Full Trace Events 1 | . . . 1 . Feedback Events . | . . . . . Feedback Blocked . | . . . . . Robot Schematics Acquired . | . . . . . Robots Built . | . . . . . Authchips . | . . . . . Time . | . . . . . Total Robot Build Rating . | . . . . . Part Schematics Acquired . | . . . . . Parts Built . | . . . . . Authchips . | . . . . . Time . | . . . . . Total Part Build Rating . | . . . . . Parts Repaired . | . . . . . Time . | . . . . . Parts Recycled . | . . . . . Recycled Matter . | . . . . . Retrieved Matter . | . . . . . Retrieved Components . | . . . . . Parts Scanalyzed . | . . . . . Part Schematics Acquired . | . . . . . Parts Damaged . | . . . . . Bothacking | -11 -10 -10 -9 -9 ------------ Run | Yrd Mat Min Mat Min Used RIF Installer . | . . . . . Robots Hacked . | . . . . . Non-combat . | . . . . . Combat . | . . . . . Robot Hacks Applied . | . . . . . Relay Couplers Released . | . . . . . Fabnet Peak Effective % . | . . . . . Robots Rewired . | . . . . . Allies Hacked . | . . . . . Hacks Repelled . | . . . . . Allies | -11 -10 -10 -9 -9 -------- Run | Yrd Mat Min Mat Min Total Allies 1 | . . . . 1 Largest Group 1 | . . . . 1 Highest-Rated Group 31 | . . . . 31 Highest-Rated Ally 31 | . . . . 31 Total Orders . | . . . . . Ally Attacks 10 | . . . . 10 Total Damage 170 | . . . . 170 Kills 2 | . . . . 2 Allies Corrupted . | . . . . . Allies Melted . | . . . . . Intel | -11 -10 -10 -9 -9 ------- Run | Yrd Mat Min Mat Min Robot Analysis Total 1 | . 1 . . . Derelict Logs Recovered 1 | . . 1 . . Drone Launches . | . . . . . Drone Recoveries . | . . . . . Exploration | -11 -10 -10 -9 -9 ------------- Run | Yrd Mat Min Mat Min Turns Passed 1312 | 125 184 280 449 274 Spaces Moved 852 | 60 114 217 213 248 Core 15 | 4 . . . 11 Treads 438 | 56 107 62 213 . Legs . | . . . . . Wheels 399 | . 7 155 . 237 Hover . | . . . . . Flight . | . . . . . Fastest Speed 50 | 50 90 90 160 50 Average Speed 127 | 152 155 110 160 97 Slowest Speed 160 | 160 160 160 160 100 Overloaded Moves . | . . . . . Propulsion Burnouts . | . . . . . Robots Hopped . | . . . . . Cave-ins Triggered . | . . . . . Exploration Rate (%) 34 | 6 22 57 32 55 Regions Visited 4 Branch Regions 2 Pre-discovered Areas . | . . . . . Known Exits Taken 1 | . 1 . . . Unknown Exits Taken 3 | 1 . 1 1 . Scrap Searched 2 | . . 1 . 1 Spaces Dug . | . . . . . Terrain Destroyed 118 | . . . 98 20 Melee . | . . . . . Projectile . | . . . . . AOE 118 | . . . 98 20 Terrain Rammed . | . . . . . Walls Destroyed . | . . . . . Machines Disabled . | . . . . . Actions | -11 -10 -10 -9 -9 --------- Run | Yrd Mat Min Mat Min Total 969 | 91 118 231 253 276 Wait 38 | 21 . . . 17 Move 848 | 59 113 216 212 248 Hop . | . . . . . Pick Up 9 | 5 2 . 2 . Fast Attach 7 | 5 1 . 1 . Attach 7 | 1 . . 1 5 Detach . | . . . . . Swap 6 | . 2 2 2 . Drop 1 | . . . . 1 Fire 51 | . . 13 33 5 Melee . | . . . . . Ram . | . . . . . Kick . | . . . . . Crush 2 | . . . 2 . Escape Stasis . | . . . . . Rewire . | . . . . . Trap . | . . . . . Miscellaneous . | . . . . . Route ------- -11/Scrapyard -10/Materials -10/Mines -9/Materials (discovered 2 exits: [*Mat] / [*Min]) -9/Mines History --------- Turn | Location | Event 5 | -11/Scrapyard | Discovered new exit (range 16) 126 | -11/Scrapyard | Entered Materials 284 | -10/Materials | Identified exit to Mines 310 | -10/Materials | Entered Mines 312 | -10/Mines | Met a Derelict bent on vengeance 325 | -10/Mines | Build established: Mutant 578 | -10/Mines | Learned Materials garrison access intel 583 | -10/Mines | Discovered new exit (range 5) 590 | -10/Mines | Entered Materials 590 | -9/Materials | Evolved 2 slots: Propulsion x1, Utility x1 907 | -9/Materials | Discovered new exit (range 5) 1025 | -9/Materials | Discovered new exit (range 10) 1034 | -9/Materials | Core integrity fell below 50% 1039 | -9/Materials | Entered Mines 1113 | -9/Mines | Lost 9 parts (1p3n2u3w) 1135 | -9/Mines | Received a Mining Laser from a helpful Derelict 1259 | -9/Mines | Assembled infested the area 1264 | -9/Mines | Assisted by a Guerilla fighting off Assembled 1309 | -9/Mines | Core integrity fell below 20% 1313 | -9/Mines | Destroyed by as-86719 with Assembled Blade Last Messages --------------- 01259_ ALERT: Infestation in the mines, dispatching Demolisher response squad. 01263_ K-01 Serf collects debris. 01264_ A derelict emerges from the shadows: "You need to get out of here! I've been tracking a group of Assembled to figure out where they're coming from, and they're closing on this area, come on!" 01271_ Searching scrap... 01271_ Found Plasma Cutter. 01271_ Found Hrd. Light Armor Plating. 01271_ Found Hvy. EM Pulse Gun. 01271_ Found 25 Matter. 01272_ Acquired 25 matter. 01274_ 6R-Y8E(g) destroyed. 01305_ Ion Engine destroyed. 01305_ Com. Wheel destroyed. 01307_ K-01 Serf collects debris. 01307_ Sml. Laser destroyed. 01307_ K-01 Serf destroyed. 01308_ Dropped Sml. Storage Unit. 01309_ The unstable cave ceiling collapses. Map ----- +----------------------------------------------------+ | ????????????????????????????????????????? | | ????????????????????????????????????????? | | ????????????????????????????????????????? | | ????????????????????????????????????????? | | ????????????????????????????????????????? | | ????????????????????????????????????????? | | ????????????????????????????????????????? | | ????????????????????????????????????????? | | ????????????????????????????????????????? | | ????????????????????????????????????????? | | ????????????????????????????????????????? | | ????????????????????????????????????????? | | ????????????????????????????????????????? | | ????????????????????????????????????????? | | ????????????????????????????????????????? | | ????????????????????????????????????????? | | ????????????????????????????????????????? | | #???????????????????????????????????????? | | ##??????????????????????????????????????? | | ##?????????????????????????????????????? | | ###???????????????????????????????????? | | ##??????????????????????????????????? | | #??????????????????????????????????? | | #????????????????#####?????????????? | | ##?????????????????aa #?#####???????? | | ##??????????????????##@#?# ###?????? | | # ##???????????????????# h#?# ##????? | | ?##?????????????????#### #?## #????? | | ???????????????????## # #?## #????? | | ???????#???????????# #### #????? | | ###????# ??????????### ##????? | | ##???# #######???### #?????? | | ##### #???# ##????? | | ## ## #?### ! |###??? | | #####??# ## ### ! ##?? | | ##?????# ##"%" =d #?? | | ###?#### ##### =d #?? | | #### ##??# ##?? | | ## #??## #??? | | #???#### #??? | | % #??????### # #?? | | ### ## ##???####?####### #?? | | # ## ######??### ##??????## ##?? | | #######??????## ###?????# ###??? | | #????????????# ##????## ##????? | | ###?????###### #?????####?????? | | ##????# ##?????????????? | | ##???# ### ##????????????? | | ##### ########?## ##???????????? | | #?????????# ##??????????? | +----------------------------------------------------+ Best States ------------- Heat Dissipation 48 Energy Generation 10 Energy Capacity 250 Matter Stores 300 Matter Capacity 300 Sight Range 16 Terrain Scan Density 10 Evasion (%) 50 Recoil Reduction 3 Item Schematics ----------------- None Robot Schematics ------------------ None Fabricated ------------ Nothing Alien Tech Used ----------------- None Achievements -------------- None Challenges ------------ None Game ------ Seed DecoyLaserSegregator Manual? 0 Play Time 00:08:43 Cumulative 86.0 hours Start 2024.05.07 @ 20:49:26 End 2024.05.07 @ 20:56:39 Sessions 1 Manual Loads 0 Difficulty Rogue Special Mode None Game No. 125 Rogue 120 Adventurer 5 Explorer 0 Win Type - Total 2 Types 1/0/0/1/0/0/0/0/0 Lore% 44 Gallery% 63 Achievement% 49 Wizard Run 0 Options --------- Layout 0 ASCII 0 Keyboard 0 Movement Mouse Keybinds 0 Fullscreen 1 Font 24/Smallcaps Map View 76x50 Zoom Use 9% Tactical HUD 1 Map Filters NONE Filters NONE Steam 1 RUN: f18b488d-dc8b-4e80-9b1c-a7d8bcd972b5